Cogmind - Beta 13 @@@ ROGUE MODE // 2024.04.17 @ 23:38:18 Player: Cheeriohz Result: Destroyed by P-80 Master with Gamma Rifle Performance ------------- Evolutions (5) 2500 Regions Visited (15) 3000 Robots Destroyed (194) 970 Value Destroyed (7948) 7948 Prototype IDs (44) 880 Alien Tech Used (0) 0 Bonus (5824) 5824 TOTAL SCORE: 21122 Bonus ------- High Alert Combat Kills 1354 Follower Combat Kills 2404 Entered Garrisons 200 Network Hubs Disabled 200 Acquired ECA 300 Met Warlord at Base 500 MAIN.C Attacked Warlord 500 Warlord Defense Kills 644 Built Enhanced Grunts 300 Met R17 at Cetus 500 Friendly Fire -1078 Cogmind --------- Core Integrity 0/1000 Matter 300/300 Energy 72/100 System Corruption 6% Temperature Cool (0) Movement Core (50) Location -5/Warlord Parts ------- > --- POWER (1) -------- (None) > --- PROPULSION (6) --- (None) > --- UTILITY (8) ------ Improved Hacking Suite > --- WEAPON (2) ------- (None) > --- INVENTORY (5) ---- Vortex Chain Reactor High-capacity Matter Pod (200) Vortex Rail (40) Advanced Plasma Cannon Peak State ------------ > --- POWER ------------ Quantum Reactor Quantum Reactor > --- PROPULSION ------- Improved Medium Treads Improved Medium Treads Improved Medium Treads Improved Medium Treads Centrium Heavy Treads > --- UTILITY ---------- Experimental Cooling System Large Storage Unit Improved Signal Interpreter Centrium Medium Armor Plating Centrium Medium Armor Plating Improved Energy Mantle Improved Hacking Suite System Mapper Rainbow Chip > --- WEAPON ----------- Advanced Plasma Cannon Vortex Lance > --- INVENTORY -------- Vortex Chain Reactor Improved Medium Treads Improved Energy Well High-capacity Matter Pod Centrium Medium Armor Plating Centrium Medium Armor Plating Thermal Barrier Long-range Tractor Beam Vortex Rail Vortex Rail Advanced KE Penetrator Advanced KE Penetrator Heavy Missile Launcher Vortex Lance [Rating: 148] Favorites ----------- Power Quantum Reactor Engine Reinforced Ion Engine Power Core Fusion Compressor Reactor Quantum Reactor Propulsion Improved Medium Treads Treads Improved Medium Treads Leg Carbon-fiber Leg Wheel Compact Wheel Utility Centrium Medium Armor Plating Device Advanced Heat Sink Storage Large Storage Unit Processor Rainbow Chip Hackware Improved Hacking Suite Protection Centrium Medium Armor Plating Weapon Advanced KE Penetrator Energy Gun Gatling Laser Energy Cannon Advanced Plasma Cannon Ballistic Gun Advanced KE Penetrator Ballistic Cannon Improved Light Cannon Launcher Heavy Shock Bomb Launcher Impact Weapon Heavy Mace Slashing Weapon Phasing Sabre Piercing Weapon Vortex Lance Build | -11 -10 -10 -8 -8 -8 -8 -6 -6 -6 -6 -6 -5 -5 -5 -5 ------- Run | Yrd Mat Sub Mat Sto Gar Rec Fac Ext Cet Arc Hub Fac Upp Upp War Slots Evolved 10 | . . . 4 . . . 4 . . . . 2 . . . Power . | . . . . . . . . . . . . . . . . Propulsion 4 | . . . 2 . . . 2 . . . . . . . . Utility 6 | . . . 2 . . . 2 . . . . 2 . . . Weapon . | . . . . . . . . . . . . . . . . Parts Attached 323 | 4 10 10 27 20 28 4 39 63 16 17 8 43 9 2 23 Power 17 | . 1 2 3 1 1 . 1 6 2 . . . . . . Engine 14 | . 1 2 3 1 1 . 1 5 . . . . . . . Core 1 | . . . . . . . . 1 . . . . . . . Reactor 2 | . . . . . . . . . 2 . . . . . . Propulsion 85 | 3 4 3 5 9 2 2 11 25 2 3 1 14 . . 1 Treads 69 | . 4 3 5 9 2 2 11 14 2 3 1 12 . . 1 Leg 11 | . . . . . . . . 11 . . . . . . . Wheel 5 | 3 . . . . . . . . . . . 2 . . . Hover . | . . . . . . . . . . . . . . . . Flight . | . . . . . . . . . . . . . . . . Utility 115 | 1 3 1 7 4 6 1 15 14 7 12 4 17 9 2 12 Device 72 | 1 . 1 3 1 4 . 11 7 2 11 4 12 6 2 7 Storage 8 | . 3 . 2 . 1 . . 2 . . . . . . . Processor 3 | . . . . . . . . . 2 . . . 1 . . Hackware 5 | . . . . . . 1 . . . . . 3 . . 1 Protection 27 | . . . 2 3 1 . 4 5 3 1 . 2 2 . 4 Artifact . | . . . . . . . . . . . . . . . . Weapon 106 | . 2 4 12 6 19 1 12 18 5 2 3 12 . . 10 Energy Gun 16 | . . 2 1 1 . . 3 6 1 . . . . . 2 Energy Cannon 10 | . . . . . 2 . 3 1 . . . 2 . . 2 Ballistic Gun 24 | . 2 1 4 . . . . 4 4 1 1 5 . . 2 Ballistic Cannon 19 | . . . 3 4 7 1 2 2 . . . . . . . Launcher 16 | . . 1 . 1 5 . 4 3 . . . 1 . . 1 Special Weapon . | . . . . . . . . . . . . . . . . Impact Weapon 12 | . . . 4 . 5 . . 2 . . . 1 . . . Slashing Weapon 6 | . . . . . . . . . . 1 2 3 . . . Piercing Weapon 3 | . . . . . . . . . . . . . . . 3 Special Melee Weapon . | . . . . . . . . . . . . . . . . Unidentified Prototypes 18 | . . . 2 1 . . 1 1 4 . . 1 . . 8 Corrupted Parts 4 | . . . . . . . . . 3 1 . . . . . System Corruption 22 | . . . . . . . . . 19 3 . . . . . Parts Lost 45 | . . 7 . 3 3 1 3 10 1 1 . 2 . . 14 Power 7 | . . 1 . . 1 . . 3 . . . . . . 2 Propulsion 17 | . . 3 . 1 2 1 2 4 . . . 1 . . 3 Utility 14 | . . 1 . 1 . . 1 2 1 1 . 1 . . 6 Weapon 7 | . . 2 . 1 . . . 1 . . . . . . 3 Highest Loss Streak 13 | . . 5 . 3 3 1 2 5 1 1 . 1 . . 13 To Critical Strikes 1 | . . . . . . . . . 1 . . . . . . Average Slot Usage (%) 95 | . 100 96 99 99 99 99 92 97 97 93 94 92 93 94 92 Engine 4 | . 14 12 9 8 9 9 6 5 1 . . . . . . Reactor 4 | . . . . . . . . . 5 10 10 9 10 10 9 Treads 31 | . 26 27 36 36 35 35 35 30 37 30 31 24 26 26 25 Device 12 | . 4 9 15 16 17 18 17 16 17 5 10 13 12 15 13 Storage 8 | . 23 17 13 9 9 12 6 8 9 5 5 4 5 5 4 Processor 4 | . . . . . . . . . 2 10 10 9 10 10 9 Hackware 2 | . . . . . . 5 6 3 . . . 10 10 10 9 Protection 8 | . . . 5 10 8 . 5 7 8 14 10 5 7 5 5 Energy Gun 1 | . . 9 3 . . . 5 3 . . . . . . . Ballistic Gun 8 | . 28 17 7 . . . . 2 13 14 14 5 5 5 4 Ballistic Cannon 3 | . . . 4 17 11 18 3 1 . . . . . . . Impact Weapon 1 | . . . 1 . 6 . . 2 . . . . . . . Naked Turns . | . . . . . . . . . . . . . . . . Heaviest Build 105 | 12 31 32 53 46 45 43 71 71 98 100 95 98 97 90 105 Greatest Support 210 | 32 40 40 80 91 82 82 136 168 140 209 209 210 200 200 200 Greatest Overweight (x) 33 | . . . . . 1 . . 2 . 33 . 7 . . . Average Overweight (x) 1 | . . . . . . . . . . 18 . . . . . Largest Inventory Capacity 15 | 8 15 15 15 15 15 15 15 15 15 15 15 15 15 15 15 Average Capacity 14 | 8 12 15 15 15 15 15 15 15 15 15 15 15 15 15 14 Most Carried 15 | 8 15 15 15 15 15 15 15 15 15 15 15 15 15 15 15 Average Carried 14 | 7 10 14 14 14 14 14 14 14 14 14 15 14 14 15 14 Final Capacity 15 | 8 15 15 15 15 15 15 15 15 15 15 15 15 15 15 5 Final Carried 15 | 7 15 14 14 15 15 15 15 15 14 15 15 15 15 15 5 Class Distribution -------------------- 30% | Scavenger-Mutant 30% | Scavenger-Tank 27% | Mutant 6% | Commander-Mutant 4% | Scavenger-Assassin Dominant Class ---------------- Mutant | -10/Materials Mutant | -10/Subcaves Scavenger-Mutant | -8/Materials Mutant | -8/Storage Mutant | -8/Garrison Commander-Mutant | -8/Recycling Mutant | -6/Factory Scavenger-Mutant | -6/Extension Scavenger-Mutant | -6/Cetus Scavenger-Tank | -6/Archives Scavenger-Tank | -6/Hub_04(d) Scavenger-Assassin | -5/Factory Scavenger-Mutant | -5/Upper Caves Scavenger-Mutant | -5/Upper Caves Scavenger-Mutant | -5/Warlord Resources | -11 -10 -10 -8 -8 -8 -8 -6 -6 -6 -6 -6 -5 -5 -5 -5 ----------- Run | Yrd Mat Sub Mat Sto Gar Rec Fac Ext Cet Arc Hub Fac Upp Upp War Matter Collected 6881 | 292 360 240 592 729 753 179 638 1081 333 312 196 757 122 54 243 Remotely 799 | . . . . . . . 132 . . 25 . 601 41 . . Salvage Created 8144 | 108 397 292 553 354 1002 191 1148 1545 179 518 675 869 105 . 208 Parts 353 | 8 23 14 33 20 36 17 40 33 11 32 31 44 1 . 10 Haulers Intercepted 10 | . 2 . 2 2 . . 3 . . . 1 . . . . Recyclers Shooed 3 | . . . . . . . 1 1 . . . 1 . . . Parts Field Recycled . | . . . . . . . . . . . . . . . . Retrieved Matter . | . . . . . . . . . . . . . . . . Parts Self-Destructed 4 | . . 4 . . . . . . . . . . . . . Prevented . | . . . . . . . . . . . . . . . . Kills | -11 -10 -10 -8 -8 -8 -8 -6 -6 -6 -6 -6 -5 -5 -5 -5 ------- Run | Yrd Mat Sub Mat Sto Gar Rec Fac Ext Cet Arc Hub Fac Upp Upp War Combat Hostiles Destroyed 149 | . 8 7 12 8 34 5 20 26 2 3 5 14 . . 5 Melee 6 | . . . . . 5 . . 1 . . . . . . . Guns 55 | . 8 6 10 . . . 5 6 2 3 2 8 . . 5 Cannons 47 | . . . 2 8 13 5 5 13 . . . 1 . . . AOE 26 | . . 1 . . 7 . 9 2 . . 2 5 . . . Classes Destroyed 18 | 2 4 1 2 . 4 . 2 1 . 1 . . . . 1 Worker 3 | . . . . . . . 1 . . . 2 . . . . Builder 8 | . 1 . . 1 . 1 1 . . . 3 1 . . . Tunneler 5 | 3 . . . . . . . 1 . . 1 . . . . Hauler 10 | . 2 . 2 2 . . 3 . . . 1 . . . . Recycler 5 | 1 . . . . . . 1 3 . . . . . . . Operator 8 | . . . . . . . . . . 8 . . . . . Watcher 4 | . . . . . . . 1 . 1 . . 2 . . . Swarmer 28 | . 3 . 4 . 12 . 8 . . . . . . . 1 Grunt 59 | . 5 . 3 6 10 . 8 17 . . 5 3 . . 2 Brawler 1 | . . . 1 . . . . . . . . . . . . Duelist 3 | . . . . . 1 1 . 1 . . . . . . . Sentry 27 | . . . 4 2 6 2 1 4 . 3 . 5 . . . Demolisher 1 | . . . . . . . . 1 . . . . . . . Specialist 1 | . . . . . 1 . . . . . . . . . . Hunter 6 | . . . . . 1 . 2 1 . . . 2 . . . Programmer 11 | . . . . . 3 2 1 1 . . . 4 . . . Cetus Guard 2 | . . . . . . . . . 2 . . . . . . Enhanced Grunt 2 | . . . . . . . . . . . 2 . . . . Striker 1 | . . . . . . . . . . . . . . . 1 Subdweller 7 | . . 7 . . . . . . . . . . . . . Butcher 1 | . . . . . . . . 1 . . . . . . . Bouncer 1 | . . . . . . . . . . . . . . . 1 Best Kill Streak 9 | 2 3 2 4 8 8 3 5 5 2 5 9 9 . . 5 Combat Bots Only 9 | . 3 2 4 5 8 3 4 3 1 2 3 9 . . 5 Max Kills in Single Turn 9 | 1 1 1 1 1 4 1 3 1 1 1 9 2 . . 1 Gunslinging . | . . . . . . . . . . . . . . . . Exploded 4 | . . 1 . . 4 . 3 1 . . 2 2 . . . Melee 1 | . . . . . 1 . . 1 . . . . . . . Uniques/NPCs Destroyed . | . . . . . . . . . . . . . . . . Combat | -11 -10 -10 -8 -8 -8 -8 -6 -6 -6 -6 -6 -5 -5 -5 -5 -------- Run | Yrd Mat Sub Mat Sto Gar Rec Fac Ext Cet Arc Hub Fac Upp Upp War Hostile Shots Fired 1293 | . 39 29 37 45 210 20 143 358 16 12 11 111 . . 262 Missed 319 | . 12 2 13 6 59 6 43 100 3 3 1 22 . . 49 Damage Taken 15244 | . 333 841 283 579 2128 214 1511 3068 215 154 286 1408 . . 4224 Core 1933 | . 51 113 15 17 200 14 120 358 . 23 22 70 . . 930 Absorbed by Shields 901 | . . . . . . 3 85 155 80 28 . 550 . . . Reduced by Siege Mode 147 | . . . . . . . . . . . . 27 . . 120 Redirected to Shielding 11 | . . . . . . . . 11 . . . . . . . Ignored by Resistances 1231 | . . . 2 72 . . . 533 60 31 . . . . 533 Regen/Repaired (Parts) 694 | . . . 48 332 . . . . . . . 254 . . 60 Core Remaining (%) 56 | 100 . 34 . . . 55 . . . . 38 . . . . Volleys Fired 658 | 13 28 69 33 49 71 13 78 119 16 9 15 64 25 1 55 Largest 3 | 2 2 2 2 2 2 2 2 2 2 3 3 2 1 1 2 Hottest 170 | 40 40 80 84 78 78 78 170 170 70 105 105 133 98 98 143 Shots Fired 1026 | 26 56 91 66 77 115 26 120 188 23 26 29 100 24 1 58 Gun 513 | 26 56 84 53 . . . 46 92 23 26 29 65 . . 13 Cannon 469 | . . . 13 77 99 26 63 90 . . . 32 24 1 44 Launcher 44 | . . 7 . . 16 . 11 6 . . . 3 . . 1 Special . | . . . . . . . . . . . . . . . . Kinetic 625 | 26 56 49 51 77 96 26 27 64 23 26 29 65 . . 10 Thermal 351 | . . 35 15 . . . 82 118 . . . 32 24 1 44 Explosive 15 | . . 7 . . . . 4 . . . . 3 . . 1 Electromagnetic 32 | . . . . . 19 . 7 6 . . . . . . . Entropic 3 | . . . . . . . . . . . . . . . 3 Robot Hit Streak 24 | 9 22 20 10 15 20 17 24 21 4 10 5 14 3 . 12 Robot Miss Streak 6 | 1 4 2 3 2 4 4 5 6 2 3 2 2 . . 1 Penetration Max 2 | . . . . . . . 1 2 1 . 1 . . . . Secondary Targets 3 | . 1 . . . . . . 1 1 . . . . . . Max Gunslinging Chain 1 | . 1 . . . . . . 1 1 . . . . . . Shots Hit Robots 695 | 16 39 52 40 51 99 16 77 157 14 30 13 71 3 . 17 Core Hits 357 | 7 19 18 22 16 39 6 60 91 7 12 21 30 2 . 7 Critical Kills 10 | . . . . . . . . 1 1 1 2 4 . . 1 Critical Parts Destroyed 24 | . . . . . 6 . . 3 5 . 1 8 . . 1 Critical Strikes 54 | . . . . 3 10 2 2 11 7 1 3 13 . . 2 Destroy 27 | . . . . . . . . 2 7 1 3 12 . . 2 Blast 18 | . . . . 3 4 2 2 7 . . . . . . . Smash 8 | . . . . . 6 . . 2 . . . . . . . Sever 1 | . . . . . . . . . . . . 1 . . . Melee Attacks 221 | . . . 12 . 153 . . 26 . 13 2 13 . . 2 Impact 191 | . . . 12 . 153 . . 26 . . . . . . . Slashing 28 | . . . . . . . . . . 13 2 13 . . . Piercing . | . . . . . . . . . . . . . . . . Entropic 2 | . . . . . . . . . . . . . . . 2 Sneak Attacks 16 | . . . 1 . 4 . . . . 9 . 2 . . . Combat Hostiles 4 | . . . . . 4 . . . . . . . . . . Follow-up Attacks . | . . . . . . . . . . . . . . . . Damage Inflicted 22064 | 163 478 790 824 1165 3192 407 2906 5220 316 1579 1529 2914 101 . 480 Guns 7989 | 163 478 499 539 . . . 1156 1983 316 473 536 1531 . . 315 Cannons 6940 | . . . 146 1143 1456 383 910 2154 . . . 482 101 . 165 Explosions 4076 | . . 291 . . 470 . 840 825 . . 968 682 . . . Melee 2988 | . . . 139 . 1266 . . 258 . 1106 . 219 . . . Ramming 71 | . . . . 22 . 24 . . . . 25 . . . . Kinetic 9540 | 163 478 460 521 1143 1456 383 560 1316 316 473 536 1531 . . 204 Thermal 5417 | . . 39 164 . . . 1540 2821 . . . 587 101 . 165 Explosive 1186 | . . 291 . . . . 319 . . . . 576 . . . Electromagnetic 2751 | . . . . . 470 . 487 825 . . 968 1 . . . Impact 1663 | . . . 139 . 1266 . . 258 . . . . . . . Slashing 1325 | . . . . . . . . . . 1106 . 219 . . . Piercing . | . . . . . . . . . . . . . . . . Entropic 111 | . . . . . . . . . . . . . . . 111 Highest Corruption 21 | . . . . . 2 4 2 2 21 21 1 8 8 8 8 Average Corruption 4 | . . . . . 1 3 1 2 16 13 1 4 8 8 6 Corruption Purged 24 | . . . . . . . . . . 24 . . . . . Corruption Blocked 1 | . . . . . . . . . . . . . . . 1 Effects 193 | . . . . . 21 22 3 42 15 25 . 25 20 13 7 Message Errors 51 | . . . . . 5 7 1 13 4 3 . 6 7 5 . Matter Fused 45 | . . . . . 5 6 1 8 4 5 . 5 6 3 2 Heat Flow Errors 20 | . . . . . 3 3 . 7 1 2 . 1 . 1 2 Energy Discharges 24 | . . . . . 1 3 1 6 2 6 . 2 1 1 1 Parts Rejected 1 | . . . . . . . . . . . . 1 . . . Parts Fused 3 | . . . . . . . . . . . . 1 2 . . Data Loss (minor) 18 | . . . . . 2 2 . 2 1 3 . 5 1 2 . Data Loss (major) 11 | . . . . . 4 . . 2 1 2 . . 1 1 . Misfires 11 | . . . . . 1 . . 3 2 2 . 3 . . . Alerts 4 | . . . . . . 1 . . . 1 . 1 1 . . Weapon Failures 5 | . . . . . . . . 1 . 1 . . 1 . 2 Overload Shots . | . . . . . . . . . . . . . . . . Overflow Damage 1028 | . . . 16 7 386 20 84 130 . 312 . 62 11 . . Projectiles 291 | . . . . 7 31 20 78 82 . . . 62 11 . . Explosions 6 | . . . . . . . 6 . . . . . . . . Melee 731 | . . . 16 . 355 . . 48 . 312 . . . . . Knockbacks 56 | . . . 1 15 11 3 5 21 . . . . . . . Impact 8 | . . . . 1 4 . . 3 . . . . . . . Kinetic 41 | . . . 1 10 7 3 4 16 . . . . . . . Secondary 7 | . . . . 4 . . 1 2 . . . . . . . Self-Inflicted Damage 195 | . . . . . 34 . . 23 . . 95 43 . . . Shots 7 | . . . . . 4 . . 1 . . 1 1 . . . Rammed 5 | . . . . 1 . 3 . . . . 1 . . . . Targets Rammed 7 | . . . . 2 . 3 . . . . 2 . . . . Kicked . | . . . . . . . . . . . . . . . . Crushed 2 | . . . . 1 . . . . . . 1 . . . . Highest Temperature 599 | . 15 6 41 456 112 224 423 599 203 207 300 317 440 103 543 Average Temperature 92 | . 6 6 13 158 34 102 76 107 118 32 122 131 132 43 136 Received Heat Transfer 3827 | . 168 183 81 408 585 16 354 1162 18 27 45 194 . . 586 Effects 30 | . . . . 5 . . 1 9 . . 2 1 6 . 6 Shutdowns 7 | . . . . 1 . . 1 3 . . . 1 . . 1 Energy Bleed 2 | . . . . . . . . 1 . . . . 1 . . Interference 10 | . . . . 1 . . . 2 . . 2 . 5 . . Short Circuit 2 | . . . . . . . . 1 . . . . . . 1 Damage (minor) 2 | . . . . . . . . 1 . . . . . . 1 Damage (major) 5 | . . . . 3 . . . . . . . . . . 2 Damage (core) 2 | . . . . . . . . 1 . . . . . . 1 Siege Activations 6 | . . . . . . . . . . 2 . 3 . . 1 Total Turns 120 | . . . . . . . . . . 12 . 86 . . 22 Longest Duration 55 | . . . . . . . . . . 7 . 55 . . 22 Robots Corrupted 6 | . . . . . 3 . 1 1 . . 1 . . . . Combat Hostiles 6 | . . . . . 3 . 1 1 . . 1 . . . . Parts Fried 25 | . . . . . 12 . 2 7 2 . 2 . . . . Impact Corruptions 19 | . . . 1 . 16 . . 2 . . . . . . . Robots Melted 2 | . . . . . . . . 2 . . . . . . . Combat Hostiles 2 | . . . . . . . . 2 . . . . . . . Parts Melted 17 | . . . . . 1 . 4 11 . . . 1 . . . Heat Transferred 9534 | . . 50 296 . . . 2995 5118 . . . 700 150 . 225 Parts Sabotaged . | . . . . . . . . . . . . . . . . Parts Stolen . | . . . . . . . . . . . . . . . . Parts Stripped . | . . . . . . . . . . . . . . . . Power Chain Reactions 5 | . . . . . 1 . 1 1 . . 1 1 . . . Alert | -11 -10 -10 -8 -8 -8 -8 -6 -6 -6 -6 -6 -5 -5 -5 -5 ------- Run | Yrd Mat Sub Mat Sto Gar Rec Fac Ext Cet Arc Hub Fac Upp Upp War Peak Influence 2175 | 20 218 . 201 408 2175 1062 479 646 486 447 1317 873 . . . Initial 978 | . 13 . . 33 265 978 339 206 361 194 . 644 . . . Average 371 | 13 58 . 58 191 1197 759 394 382 408 39 672 561 . . . Maximum Alert Level 5 | . 1 . 1 2 5 3 2 2 2 2 4 3 . . . Low Security (%) 43 | 100 93 . 98 50 . . . . . 89 3 . . . . Level 1 19 | . 6 . 1 31 11 . 40 62 62 7 17 2 . . . Level 2 21 | . . . . 18 9 57 59 37 37 2 27 72 . . . Level 3 7 | . . . . . 20 42 . . . . 50 25 . . . Level 4 4 | . . . . . 36 . . . . . 1 . . . . Level 5 3 | . . . . . 22 . . . . . . . . . . High Security . | . . . . . . . . . . . . . . . . Max Security . | . . . . . . . . . . . . . . . . Squads Dispatched 32 | . 1 . . 3 . . 6 3 . . 10 9 . . . Investigation 3 | . 1 . . 1 . . . . . . 1 . . . . Extermination 5 | . . . . . . . 2 . . . 1 2 . . . Reinforcement 15 | . . . . 2 . . 3 1 . . 6 3 . . . Assault 5 | . . . . . . . . 2 . . 1 2 . . . Garrison 4 | . . . . . . . 1 . . . 1 2 . . . Intercept . | . . . . . . . . . . . . . . . . Searches Triggered . | . . . . . . . . . . . . . . . . Construction Impeded 3 | . . . . . . . 1 . . . . 2 . . . Haulers Reinforced 3 | . . . . . . . 1 . . . 1 1 . . . Active Scanning Responses . | . . . . . . . . . . . . . . . . Cargo Convoy Interrupts . | . . . . . . . . . . . . . . . . Stealth | -11 -10 -10 -8 -8 -8 -8 -6 -6 -6 -6 -6 -5 -5 -5 -5 --------- Run | Yrd Mat Sub Mat Sto Gar Rec Fac Ext Cet Arc Hub Fac Upp Upp War Distress Signals 20 | . 1 . 4 . . . 2 3 2 . 3 . . . 5 Communications Jammed . | . . . . . . . . . . . . . . . . Distress Signals . | . . . . . . . . . . . . . . . . Times Spotted 283 | . 11 7 21 20 38 7 27 62 9 14 13 15 . . 39 Peak Tracking Total 21 | . 4 2 6 5 5 2 5 6 5 1 5 5 . . 21 Tactical Retreats 21 | . 1 . 1 2 5 . 2 9 . . 1 . . . . Traps | -11 -10 -10 -8 -8 -8 -8 -6 -6 -6 -6 -6 -5 -5 -5 -5 ------- Run | Yrd Mat Sub Mat Sto Gar Rec Fac Ext Cet Arc Hub Fac Upp Upp War Traps Triggered 9 | . 1 . 1 1 2 . 1 . . . 1 2 . . . Indirectly 2 | . . . . . 1 . . . . . 1 . . . . Trap Hack Attempts . | . . . . . . . . . . . . . . . . Triggered . | . . . . . . . . . . . . . . . . Disarmed . | . . . . . . . . . . . . . . . . Reprogrammed . | . . . . . . . . . . . . . . . . Reused . | . . . . . . . . . . . . . . . . Traps Extracted . | . . . . . . . . . . . . . . . . Installed . | . . . . . . . . . . . . . . . . Triggered 16 | . . . . . 1 . . . . . . . . 1 14 Machines | -11 -10 -10 -8 -8 -8 -8 -6 -6 -6 -6 -6 -5 -5 -5 -5 ---------- Run | Yrd Mat Sub Mat Sto Gar Rec Fac Ext Cet Arc Hub Fac Upp Upp War Machines Disabled 38 | . . 1 . 8 2 . 1 1 1 1 19 4 . . . Max in Single Turn 15 | . . 1 . 1 1 . 1 1 1 1 15 2 . . . Garrison Access 2 | . . . . . . . . . . . 1 1 . . . Network Hub 1 | . . . . . . . . . . . 1 . . . . Machines Repaired . | . . . . . . . . . . . . . . . . Machines Dismantled . | . . . . . . . . . . . . . . . . Machines Sabotaged . | . . . . . . . . . . . . . . . . Overloaded Fab Kills . | . . . . . . . . . . . . . . . . Hacking | -11 -10 -10 -8 -8 -8 -8 -6 -6 -6 -6 -6 -5 -5 -5 -5 --------- Run | Yrd Mat Sub Mat Sto Gar Rec Fac Ext Cet Arc Hub Fac Upp Upp War Machines Accessed 54 | . 5 1 5 6 3 6 4 11 . . 2 9 . . 2 Terminals 42 | . 5 . 4 4 3 6 3 11 . . 1 5 . . . Fabricators 1 | . . . . . . . . . . . . 1 . . . Repair Stations 4 | . . . 1 1 . . . . . . . 2 . . . Recycling Units 1 | . . . . . . . 1 . . . . . . . . Scanalyzers . | . . . . . . . . . . . . . . . . Garrison Access 3 | . . . . 1 . . . . . . 1 1 . . . Total Hacks 156 | . 17 1 13 20 5 22 10 19 . . 6 38 . . 5 Successful 66 | . 6 1 6 16 1 7 3 4 . . 4 13 . . 5 Failed 88 | . 10 . 6 4 4 15 7 15 . . 2 25 . . . Catastrophic 23 | . 2 . 1 . 2 5 2 4 . . 1 6 . . . Database Lockouts 2 | . 1 . 1 . . . . . . . . . . . . Manual 52 | . 14 . 8 4 . 10 . 4 1 . 2 8 . 1 . Terminals 122 | . 17 . 11 11 5 22 7 19 . . 4 26 . . . Fabricators 2 | . . . . . . . . . . . . 2 . . . Repair Stations 18 | . . . 2 8 . . . . . . . 8 . . . Recycling Units 3 | . . . . . . . 3 . . . . . . . . Scanalyzers . | . . . . . . . . . . . . . . . . Garrison Access 5 | . . . . 1 . . . . . . 2 2 . . . Terminal Hacks 43 | . 5 1 4 4 1 7 1 4 . . 3 8 . . 5 Record 1 | . . . . . . . . . . . 1 . . . . Robot Analysis 4 | . 2 . 2 . . . . . . . . . . . . Prototype ID Bank 10 | . 1 . . 1 . 3 . . . . . 1 . . 4 Open Door 7 | . . . . 1 . . 1 4 . . . . . . 1 Level Access Points 1 | . . . . . . . . . . . . 1 . . . Branch Access Points 3 | . . . 1 . . . . . . . 1 1 . . . Terminal Index 1 | . . . . . . 1 . . . . . . . . . Alert Level 3 | . 1 . . 1 . 1 . . . . . . . . . Unreport Threat 6 | . 1 . 1 . . 2 . . . . 1 1 . . . Recall Assault 1 | . . . . . . . . . . . . 1 . . . Hauler Manifests 1 | . . . . . . . . . . . . 1 . . . Registered Components 2 | . . . . 1 . . . . . . . 1 . . . Registered Prototypes 1 | . . . . . . . . . . . . 1 . . . Patrol Navigation 1 | . . . . . 1 . . . . . . . . . . Derelict Proto ID Bank 1 | . . 1 . . . . . . . . . . . . . Fabricator Hacks . | . . . . . . . . . . . . . . . . Repair Station Hacks 13 | . . . 2 8 . . . . . . . 3 . . . Scan Component 7 | . . . 1 4 . . . . . . . 2 . . . Repair 6 | . . . 1 4 . . . . . . . 1 . . . Recycling Unit Hacks 2 | . . . . . . . 2 . . . . . . . . Process 1 | . . . . . . . 1 . . . . . . . . Retrieve Matter 1 | . . . . . . . 1 . . . . . . . . Scanalyzer . | . . . . . . . . . . . . . . . . Garrison Access Hacks 3 | . . . . 1 . . . . . . 1 1 . . . Unlock Access 3 | . . . . 1 . . . . . . 1 1 . . . Unauthorized Hacks 5 | . 1 . . 3 . . . . . . . 1 . . . Terminals 5 | . 1 . . 3 . . . . . . . 1 . . . Track 1 | . . . . 1 . . . . . . . . . . . Botnet 4 | . 1 . . 2 . . . . . . . 1 . . . Fabricators . | . . . . . . . . . . . . . . . . Repair Stations . | . . . . . . . . . . . . . . . . Recycling Units . | . . . . . . . . . . . . . . . . Scanalyzers . | . . . . . . . . . . . . . . . . Garrison Access . | . . . . . . . . . . . . . . . . Data Cores Recovered . | . . . . . . . . . . . . . . . . Used . | . . . . . . . . . . . . . . . . Hacking Detections 46 | . 5 . 5 4 3 6 2 11 . . 2 8 . . . Full Trace Events 4 | . . . . 1 1 2 . . . . . . . . . Feedback Events . | . . . . . . . . . . . . . . . . Feedback Blocked . | . . . . . . . . . . . . . . . . Robot Schematics Acquired . | . . . . . . . . . . . . . . . . Robots Built . | . . . . . . . . . . . . . . . . Authchips . | . . . . . . . . . . . . . . . . Time . | . . . . . . . . . . . . . . . . Total Robot Build Rating . | . . . . . . . . . . . . . . . . Part Schematics Acquired . | . . . . . . . . . . . . . . . . Parts Built . | . . . . . . . . . . . . . . . . Authchips . | . . . . . . . . . . . . . . . . Time . | . . . . . . . . . . . . . . . . Total Part Build Rating . | . . . . . . . . . . . . . . . . Parts Repaired 6 | . . . 1 4 . . . . . . . 1 . . . Time 196 | . . . 26 116 . . . . . . . 54 . . . Parts Recycled . | . . . . . . . . . . . . . . . . Recycled Matter 55 | . . . . . . . 55 . . . . . . . . Retrieved Matter . | . . . . . . . . . . . . . . . . Retrieved Components . | . . . . . . . . . . . . . . . . Parts Scanalyzed . | . . . . . . . . . . . . . . . . Part Schematics Acquired . | . . . . . . . . . . . . . . . . Parts Damaged . | . . . . . . . . . . . . . . . . Bothacking | -11 -10 -10 -8 -8 -8 -8 -6 -6 -6 -6 -6 -5 -5 -5 -5 ------------ Run | Yrd Mat Sub Mat Sto Gar Rec Fac Ext Cet Arc Hub Fac Upp Upp War Used RIF Installer . | . . . . . . . . . . . . . . . . Robots Hacked . | . . . . . . . . . . . . . . . . Non-combat . | . . . . . . . . . . . . . . . . Combat . | . . . . . . . . . . . . . . . . Robot Hacks Applied . | . . . . . . . . . . . . . . . . Relay Couplers Released 9 | . . . . . 4 . . . . . 3 2 . . . Machine Destruction 5 | . . . . . . . . . . . 3 2 . . . Programmers 4 | . . . . . 4 . . . . . . . . . . Fabnet Peak Effective % . | . . . . . . . . . . . . . . . . Robots Rewired 33 | . . . . . . 15 . 18 . . . . . . . Allies Hacked . | . . . . . . . . . . . . . . . . Hacks Repelled . | . . . . . . . . . . . . . . . . Allies | -11 -10 -10 -8 -8 -8 -8 -6 -6 -6 -6 -6 -5 -5 -5 -5 -------- Run | Yrd Mat Sub Mat Sto Gar Rec Fac Ext Cet Arc Hub Fac Upp Upp War Total Allies 48 | . . . . 2 . 15 . 26 5 . . . . . . Largest Group 13 | . . . . 2 1 13 13 12 7 6 4 . . . . Highest-Rated Group 623 | . . . . 115 95 201 201 356 623 623 384 . . . . Highest-Rated Ally 159 | . . . . 100 95 34 34 159 159 143 96 . . . . Total Orders 7 | . . . . . . . . . . 2 . . . . 5 STAY 1 | . . . . . . . . . . 1 . . . . . FOLLOW 1 | . . . . . . . . . . 1 . . . . . EXPLORE 5 | . . . . . . . . . . . . . . . 5 Ally Attacks 384 | . . . . 16 . 19 46 165 48 6 84 . . . . Total Damage 10704 | . . . . 1071 . 552 706 3454 1247 279 3395 . . . . Kills 70 | . . . . 8 . 7 4 21 7 1 22 . . . . Allies Corrupted 12 | . . . . . . . . . . . . . . . 12 Allies Melted 1 | . . . . . . . . . . . . . . . 1 Intel | -11 -10 -10 -8 -8 -8 -8 -6 -6 -6 -6 -6 -5 -5 -5 -5 ------- Run | Yrd Mat Sub Mat Sto Gar Rec Fac Ext Cet Arc Hub Fac Upp Upp War Robot Analysis Total 4 | . 2 . 2 . . . . . . . . . . . . Derelict Logs Recovered 3 | . . 1 . . . . . . . . . . . 2 . Drone Launches 50 | . . . . . . . . . . . . . . . 50 Drone Recoveries 8 | . . . . . . . . . . . . . . . 8 Exploration | -11 -10 -10 -8 -8 -8 -8 -6 -6 -6 -6 -6 -5 -5 -5 -5 ------------- Run | Yrd Mat Sub Mat Sto Gar Rec Fac Ext Cet Arc Hub Fac Upp Upp War Turns Passed 24387 | 123 938 908 1091 1150 2909 1050 1467 2917 348 7331 475 1525 521 364 1270 Spaces Moved 8963 | 47 519 416 512 518 1326 516 700 1374 170 686 252 763 284 224 656 Core 402 | . . . . . . . . . . 379 . . . . 23 Treads 8224 | . 475 416 512 518 1326 516 700 1166 170 307 252 725 284 224 633 Legs 219 | 11 . . . . . . . 208 . . . . . . . Wheels 118 | 36 44 . . . . . . . . . . 38 . . . Hover . | . . . . . . . . . . . . . . . . Flight . | . . . . . . . . . . . . . . . . Fastest Speed 50 | 90 100 160 160 156 163 161 158 120 160 160 160 135 160 160 50 Average Speed 225 | 104 154 160 160 161 169 162 161 155 160 1010 160 160 160 160 156 Slowest Speed 1700 | 120 160 160 160 170 250 163 165 320 160 1700 161 195 160 160 160 Overloaded Moves . | . . . . . . . . . . . . . . . . Propulsion Burnouts . | . . . . . . . . . . . . . . . . Robots Hopped . | . . . . . . . . . . . . . . . . Cave-ins Triggered 1 | . . . . . . . . . . . . . . . 1 Exploration Rate (%) 56 | 6 90 37 43 68 94 92 19 98 56 80 22 22 48 46 86 Regions Visited 15 Branch Regions 10 Pre-discovered Areas 2 | . . . . . . . . . . . . . 1 1 . Known Exits Taken 8 | . . . 1 1 . . . . 1 1 1 1 1 1 . Unknown Exits Taken 6 | 1 1 1 . . . 1 1 1 . . . . . . . Scrap Searched 4 | . . . . . . . . . . . . . 3 1 . Spaces Dug 155 | . . . 8 . 54 . 21 3 . . 1 18 21 . 29 Terrain Destroyed 477 | . . 8 8 1 57 1 55 33 1 9 170 69 21 1 43 Melee 77 | . . . 8 . 54 . . 3 . . 1 9 . . 2 Projectile 182 | . . . . 1 2 1 32 27 1 9 14 32 21 1 41 AOE 218 | . . 8 . . 1 . 23 3 . . 155 28 . . . Terrain Rammed . | . . . . . . . . . . . . . . . . Walls Destroyed . | . . . . . . . . . . . . . . . . Machines Disabled . | . . . . . . . . . . . . . . . . Actions | -11 -10 -10 -8 -8 -8 -8 -6 -6 -6 -6 -6 -5 -5 -5 -5 --------- Run | Yrd Mat Sub Mat Sto Gar Rec Fac Ext Cet Arc Hub Fac Upp Upp War Total 11747 | 97 606 570 711 760 1601 699 905 1902 227 1043 291 939 324 230 842 Wait 908 | 29 23 71 84 148 8 9 45 74 5 303 12 27 1 . 69 Move 8947 | 46 518 415 511 517 1324 515 699 1373 169 685 251 762 283 223 656 Hop . | . . . . . . . . . . . . . . . . Pick Up 101 | 1 14 2 16 9 7 2 17 8 6 4 . 7 1 1 6 Fast Attach 119 | 3 1 4 13 4 1 2 13 25 9 11 1 13 4 2 13 Attach 35 | . 1 4 4 3 3 . 3 3 3 2 . 7 . . 2 Detach 28 | 2 1 2 4 . 1 . 1 2 3 2 . 3 1 . 6 Swap 169 | 1 8 2 10 13 24 2 23 35 4 4 7 23 5 . 8 Drop 198 | 2 12 1 24 15 7 4 26 36 12 10 1 20 4 3 21 Fire 658 | 13 28 69 33 49 71 13 78 119 16 9 15 64 25 1 55 Melee 221 | . . . 12 . 153 . . 26 . 13 2 13 . . 2 Ram . | . . . . . . . . . . . . . . . . Kick . | . . . . . . . . . . . . . . . . Crush 7 | . . . . 2 . 3 . . . . 2 . . . . Escape Stasis 2 | . . . . . 2 . . . . . . . . . . Rewire 350 | . . . . . . 149 . 201 . . . . . . . Trap . | . . . . . . . . . . . . . . . . Miscellaneous 4 | . . . . . . . . . . . . . . . 4 Route ------- -11/Scrapyard -10/Materials (discovered 5 exits: [*Mat x3] / [*Min] / *Sub) -10/Subcaves -8/Materials -8/Storage -8/Garrison (discovered 3 exits: *Rec x3) -8/Recycling -6/Factory (discovered 3 exits: *Fac x2 / *Ext) -6/Extension (discovered 3 exits: *Fac x2 / *Cet) -6/Cetus (discovered 2 exits: *Fac / *Arc) -6/Archives (discovered 3 exits: *Fac / *Hub x2) -6/Hub_04(d) -5/Factory (discovered 6 exits: Fac x4 / *Upp x2) -5/Upper Caves -5/Upper Caves -5/Warlord History --------- Turn | Location | Event 7 | -11/Scrapyard | Discovered new exit (range 2) 124 | -11/Scrapyard | Entered Materials 249 | -10/Materials | Central database locked down 256 | -10/Materials | Discovered new exit (range 15) 308 | -10/Materials | Build established: Mutant 475 | -10/Materials | Discovered new exit (range 15) 654 | -10/Materials | Discovered new exit (range 14) 789 | -10/Materials | Discovered new exit (range 13) 863 | -10/Materials | Discovered new exit (range 10) 1062 | -10/Materials | Entered Subcaves 1064 | -10/Subcaves | Learned Materials terminal intel 1345 | -10/Subcaves | Lost 5 parts (1p1n1u2w) 1526 | -10/Subcaves | Visited 4L-MR0's lab 1542 | -10/Subcaves | Found Rainbow Chip 1689 | -10/Subcaves | Ambushed by Subdwellers from Twisted Machinery 1706 | -10/Subcaves | Discovered new exit (range 12) 1712 | -10/Subcaves | Ambushed by Subdweller buried in earth 1733 | -10/Subcaves | Core integrity fell below 50% 1970 | -10/Subcaves | Entered Materials 1970 | -8/Materials | Evolved 4 slots: Propulsion x2, Utility x2 1971 | -8/Materials | Loaded intel: 12 terminal locations 2101 | -8/Materials | Central database locked down 2548 | -8/Materials | Discovered new exit (range 15) 2674 | -8/Materials | Identified exit to Storage 2891 | -8/Materials | Build established: Scavenger-Mutant 2984 | -8/Materials | Repaired Grenade Launcher 3061 | -8/Materials | Entered Storage 3294 | -8/Storage | Lost 3 parts (1n1u1w) 3458 | -8/Storage | Repaired Rnf. Ion Engine 3486 | -8/Storage | Repaired Lgt. Armor Plating 3519 | -8/Storage | Repaired Imp. Light Cannon 3546 | -8/Storage | Repaired Lgt. Treads 3687 | -8/Storage | Met 01-MTF 3996 | -8/Storage | Build established: Mutant 4209 | -8/Storage | Identified exit to Garrison 4211 | -8/Storage | Entered Garrison 4211 | -8/Garrison | Accompanied by 1 ally (01-MTF) 4216 | -8/Garrison | 01-MTF left 4275 | -8/Garrison | Triggered checkpoint 4525 | -8/Garrison | Triggered checkpoint 4597 | -8/Garrison | Destroyed 8 combat bots 4799 | -8/Garrison | Triggered checkpoint 4976 | -8/Garrison | Discovered new exit (range 8) 5103 | -8/Garrison | Triggered checkpoint 5313 | -8/Garrison | Triggered checkpoint 5326 | -8/Garrison | Discovered new exit (range 14) 5385 | -8/Garrison | Triggered checkpoint 5635 | -8/Garrison | Triggered checkpoint 5850 | -8/Garrison | Discovered new exit (range 10) 6169 | -8/Garrison | Triggered checkpoint 6920 | -8/Garrison | Lost 3 parts (1p2n) 6977 | -8/Garrison | Attempted to access garrison exit controls, blocked by remote lockdown 7120 | -8/Garrison | Entered Recycling 7584 | -8/Recycling | Build established: Commander-Mutant 7611 | -8/Recycling | Discovered new exit (range 5) 8170 | -8/Recycling | Entered Factory 8170 | -6/Factory | Accompanied by 13 allies 8170 | -6/Factory | Evolved 4 slots: Propulsion x2, Utility x2 8505 | -6/Factory | Discovered new exit (range 16) 8515 | -6/Factory | Lost 10 allies 8602 | -6/Factory | Lost 3 allies 8780 | -6/Factory | Build established: Scavenger-Mutant 8981 | -6/Factory | Discovered new exit (range 12) 9085 | -6/Factory | Build established: Mutant 9291 | -6/Factory | Discovered new exit (range 6) 9596 | -6/Factory | Garrison activated, responded to threat 9637 | -6/Factory | Entered Extension 9899 | -6/Extension | Build established: Scavenger-Mutant 9937 | -6/Extension | Disrupted transfer network 10337 | -6/Extension | First assault squad dispatched 10502 | -6/Extension | Lost 4 allies 10512 | -6/Extension | Core integrity fell below 50% 10538 | -6/Extension | Lost 5 parts (2p1n2u) 10762 | -6/Extension | Rescued a captive Derelict 11367 | -6/Extension | Build established: Commander-Mutant 11508 | -6/Extension | Spotted B-75 Beast 11524 | -6/Extension | Allies destroyed B-75 Beast 11527 | -6/Extension | Spotted B-75 Beast 11541 | -6/Extension | Allies destroyed B-75 Beast 11571 | -6/Extension | Lost 4 allies 11608 | -6/Extension | Discovered new exit (range 4) 11624 | -6/Extension | Lost 3 allies 11676 | -6/Extension | Rescued a captive Derelict 11676 | -6/Extension | Rescued a captive Derelict 11760 | -6/Extension | Lost 3 allies 11762 | -6/Extension | Rescued A7 11823 | -6/Extension | Build established: Scavenger-Mutant 11923 | -6/Extension | Rescued a captive Derelict 12073 | -6/Extension | Rescued a captive Derelict 12073 | -6/Extension | Rescued a captive Derelict 12144 | -6/Extension | Rescued a captive Derelict 12494 | -6/Extension | Discovered new exit (range 16) 12494 | -6/Extension | Discovered new exit (range 16) 12554 | -6/Extension | Entered Cetus 12554 | -6/Cetus | Accompanied by 7 allies (A7) 12559 | -6/Cetus | Acquired a Cetus Manufacturing Module code from A7 12576 | -6/Cetus | Spotted Cetus Guard 12576 | -6/Cetus | Spotted Cetus Guard 12578 | -6/Cetus | Spotted Cetus Guard 12583 | -6/Cetus | Allies destroyed Cetus Guard 12584 | -6/Cetus | Spotted Cetus Guard 12591 | -6/Cetus | Allies destroyed Cetus Guard 12596 | -6/Cetus | Allies destroyed Cetus Guard 12604 | -6/Cetus | Destroyed Cetus Guard 12624 | -6/Cetus | Lost 5 allies 12628 | -6/Cetus | System corruption reached 10% 12698 | -6/Cetus | Started Cetus Manufacturing Module 12723 | -6/Cetus | Manufactured an Enhanced Grunt 12725 | -6/Cetus | Discovered new exit (range 15) 12748 | -6/Cetus | Manufactured an Enhanced Grunt 12758 | -6/Cetus | Spotted Cetus Guard 12759 | -6/Cetus | Spotted Cetus Guard 12763 | -6/Cetus | Spotted Cetus Guard 12764 | -6/Cetus | Spotted Cetus Guard 12768 | -6/Cetus | Destroyed Cetus Guard 12772 | -6/Cetus | Allies destroyed Cetus Guard 12773 | -6/Cetus | Manufactured an Enhanced Grunt 12773 | -6/Cetus | Allies destroyed Cetus Guard 12778 | -6/Cetus | Allies destroyed Cetus Guard 12787 | -6/Cetus | Discovered new exit (range 15) 12795 | -6/Cetus | Met Revision 17 12798 | -6/Cetus | Manufactured an Enhanced Grunt 12816 | -6/Cetus | Attached Rainbow Chip, gained temporary slots: Power, Propulsion, Utility, Weapon 12823 | -6/Cetus | Manufactured an Enhanced Grunt 12900 | -6/Cetus | Identified exit to Archives 12902 | -6/Cetus | Entered Archives 12902 | -6/Archives | Accompanied by 6 allies (A7) 13003 | -6/Archives | Discovered new exit (range 16) 13024 | -6/Archives | Discovered new exit (range 16) 13333 | -6/Archives | Discovered new exit (range 16) 13379 | -6/Archives | Identified exit to Hub_04(d) 13901 | -6/Archives | Build established: Scavenger-Tank 20233 | -6/Archives | Entered Hub_04(d) 20233 | -6/Hub_04(d) | Accompanied by 4 allies 20249 | -6/Hub_04(d) | Garrison activated, responded to threat 20265 | -6/Hub_04(d) | Identified exit to Garrison 20277 | -6/Hub_04(d) | Discovered new exit (range 15) 20368 | -6/Hub_04(d) | Identified exit to Factory 20701 | -6/Hub_04(d) | Network Hub disabled 20708 | -6/Hub_04(d) | Entered Factory 20708 | -5/Factory | Evolved 2 slots: Utility x2 21008 | -5/Factory | First assault squad dispatched 21190 | -5/Factory | Build established: Scavenger-Assassin 21426 | -5/Factory | Identified exit to Factory 21447 | -5/Factory | Identified exit to Upper Caves 22001 | -5/Factory | Repaired Centrium Heavy Treads 22055 | -5/Factory | Identified exit to Garrison 22160 | -5/Factory | Destroyed 9 combat bots 22233 | -5/Factory | Entered Upper Caves 22239 | -5/Upper Caves | Met a Warlord Commander 22240 | -5/Upper Caves | Learned location of Warlord (-5) 22241 | -5/Upper Caves | Warlord Commander delivered Encrypted Comm Array 22357 | -5/Upper Caves | Build established: Scavenger-Mutant 22712 | -5/Upper Caves | Discovered new exit (range 5) 22717 | -5/Upper Caves | Identified exit to Upper Caves 22754 | -5/Upper Caves | Entered another Upper Caves area 22866 | -5/Upper Caves | Learned Factory interactive machine intel 23037 | -5/Upper Caves | Acquired the password to a Derelict Tinkerer's latest research 23111 | -5/Upper Caves | Discovered new exit (range 5) 23116 | -5/Upper Caves | Identified exit to Warlord 23118 | -5/Upper Caves | Entered Warlord 23234 | -5/Warlord | System corruption cleaned by Quarantine Array 23453 | -5/Warlord | Visited the Vortex Lab 23465 | -5/Warlord | Warlord's base attacked by MAIN.C 23469 | -5/Warlord | Found Prototype Piercing Weapon 23469 | -5/Warlord | Identified Vortex Lance 23475 | -5/Warlord | Found Prototype Energy Gun 23475 | -5/Warlord | Identified Vortex Rail 23479 | -5/Warlord | Found Vortex Rail 23487 | -5/Warlord | Found Vortex Lance 23815 | -5/Warlord | Warlord forces counterattacked 23816 | -5/Warlord | Met Warlord 23846 | -5/Warlord | Found Prototype Device 23846 | -5/Warlord | Identified Thermal Barrier 23866 | -5/Warlord | Found Prototype Hackware 23866 | -5/Warlord | Identified System Mapper 23877 | -5/Warlord | Found Prototype Reactor 23974 | -5/Warlord | Found Prototype Device 23974 | -5/Warlord | Identified Minesniffer Drone Bay 24136 | -5/Warlord | Spotted Striker 24139 | -5/Warlord | Spotted Striker 24140 | -5/Warlord | Warlord base infiltrated, sounded retreat 24145 | -5/Warlord | Spotted Executioner 24145 | -5/Warlord | Spotted Executioner 24165 | -5/Warlord | Crushed by falling debris 24216 | -5/Warlord | Lost 10 allies 24323 | -5/Warlord | Spotted Striker 24323 | -5/Warlord | P-80 Master assimilated allied UO-TIF(M) 24325 | -5/Warlord | P-70 Sage assimilated allied HG-6IT(Y) 24338 | -5/Warlord | Destroyed Striker 24346 | -5/Warlord | Spotted Executioner 24362 | -5/Warlord | Lost 3 allies 24377 | -5/Warlord | Core integrity fell below 50% 24385 | -5/Warlord | Core integrity fell below 20% 24388 | -5/Warlord | Destroyed by P-80 Master with Gamma Rifle Last Messages --------------- 24375_ Temporary Utility slot lost. 24376_ Centrium Heavy Treads destroyed. 24376_ Penetrated by Slug. 24376_ Imp. Medium Treads destroyed. 24377_ Penetrated by Slug. 24377_ System Mapper destroyed. 24379_ Acquired 30 matter. 24379_ Penetrated by Slug. 24380_ System corrupted: Energy discharge (-27). 24380_ Slug penetrates Wall. 24380_ P-80 Master resets Executioner, system corruption cleaned. 24380_ Rainbow Chip destroyed. 24380_ Critical hit (Burn: +37). 24383_ Penetrated by Slug. 24384_ Slug penetrates Wall. 24384_ Anti-Ion Cluster explodes. 24384_ S-27 Virus destroyed. 24386_ Penetrated by Slug. 24387_ Slug penetrates Storage. 24387_ Penetrated by Slug. Map ----- +----------------------------------------------------+ | ??#" "? " !!/[ ]&%//%=#??#??#""#?????????????? | | ??#"" "???#"!!!%//!%%!%%## ##?#""####??????????? | | ??##"" "##???#== !=####%%%=!!""##""##%##???##??#?? | | ???######????##!!=%=====%[!% ""=[[=####!##%### | | ?????????????#"%=!%= ![!%*%% !""=[=*"!%[*"!" "" | | ?????????????#" %[" [=%=% % !""=%![%!=*=/!=*!= | | ?????????????## %! !%=%=== %=[!%![!%=[%!%*==!!= | | ?????????????## %!]*![ *!=%%=%!%%%%%%[!%[*%%! | | ?????????????#" %!== %= %==!%[%=%%%%%%%%%%/==!% | | ?????????????# %% =%= !!%!*=%! !%%!%*%%*!!=[=% | | ###??????????## ! "*] !=*=[%!!""==[=*%[ ="![![" | | ??????###### # p ]%!" ""!*=["=**""="""" | | """ #???# + % " "" [!"##!##"##### | | """ #???# # ##"####"""##"#?# #?????? | | """ #???# # %[ ###??#""#### #?# #????? | | #???# ## = #????#""#???##??# #???? | | """ #???# ## *%[ #????#""#????????# #??? | | """ #???####### = #?????""??????????##??? | | """ #?????????# #?????????????????????? | | #?########## #?????????????????????? | | ##+###?# + #?????????????????????? | | #?# # "" #?????????????????????? | | #?# # """ %% #?????????????????????# | | #?# # """ % #?????????????????????# | | #?# +! [%#?????????????????????# | | #?# #% ^ %@&#????????????????????# | | # ##?# # """ %#??????????????????? | | # #??# # """ %#?????????????????? | | +^^ #??# # "" #????????????????# ## | | # #??########## %#????????????????####?? | | # #???????????# ^ #?????????????????????? | | # #?????####### "" " ##????????????????????? | | # ####### ## ## """" #????????????????????? | | # = """"" ##????????????????????? | | #######+##+##### #?????????????????????? | | ????# #???# #?????????????????????? | | ????# #???# """"" ##????????????????????? | | ????# ! #???# """"" #????????????????????? | | ????# / ! #???# """"" ########??????????????? | | ????# / ! #???# #??????????????? | | ????# #???# #??????????????? | | ????########???# ###############??????????????? | | ???????????????######????????????????????????????? | | ?????????????????????????????????????????????????? | | ?????????????????????????????????????????????????? | | ?????????????????????????????????????????????????? | | ?????????????????????????????????????????????????? | | | | | | | +----------------------------------------------------+ Best States ------------- Heat Dissipation 78 Energy Generation 45 Energy Capacity 750 Matter Stores 500 Matter Capacity 500 Sight Range 21 Robot Scan Range 15 Terrain Scan Density 10 Power Amplification 20 Armor Coverage 900 Resistance: KI 25 Resistance: TH 50 Core Shielding 20 Evasion (%) 55 Recoil Reduction 7 Particle Charging 25 Offensive Hacking 32 Defensive Hacking 14 Item Schematics ----------------- None Robot Schematics ------------------ None Fabricated ------------ Nothing Alien Tech Used ----------------- None Achievements -------------- None Challenges ------------ None Game ------ Seed IntegrityMobileInitializer Manual? 0 Play Time 02:48:20 Cumulative 137.1 hours Start 2024.04.17 @ 20:09:15 End 2024.04.17 @ 23:38:18 Sessions 1 Manual Loads 0 Difficulty Rogue Special Mode None Game No. 124 Rogue 124 Adventurer 0 Explorer 0 Win Type - Total 3 Types 2/0/0/1/0/0/0/0/0 Lore% 54 Gallery% 72 Achievement% 55 Wizard Run 0 Options --------- Layout 2 ASCII 0 Keyboard 1 Movement Numpad Keybinds 0 Fullscreen 1 Font 32/SmallcapsGlow Map View 77x44 Zoom Use 0% Tactical HUD 1 Map Filters NONE Filters NONE Steam 1 RUN: 449e9028-cd31-4dee-8afe-44c051344d52